bitfinex/quotes_SOLUSD_20251128
["timestamp","ask_amount","ask_price","bid_price","bid_amount"]
[1764293006617,24.42847473,139.51,139.5,42.99563011]
[1764293007226,5.27058486,139.54,139.5,43.65563011]
[1764293007412,3.18,139.53,139.5,42.99563011]
[1764293007618,16.308864,139.51,139.5,43.65563011]
[1764293007824,8.80994492,139.52,139.5,43.65563011]
[1764293008012,8.80994492,139.53,139.51,0.66]
[1764293008216,3.18,139.52,139.51,0.66]
[1764293008409,19.488864,139.52,139.51,0.66]
[1764293009035,19.488864,139.52,139.51,5.93058486]
[1764293009238,7.16495336,139.57,139.51,13.09834873]
[1764293009410,8.80994492,139.57,139.53,5.27058486]
[1764293009605,3.18,139.56,139.53,5.27058486]
[1764293009808,3.18,139.56,139.54,0.66]
[1764293010937,15.61635166,139.56,139.54,0.66]
[1764293011122,15.61635166,139.56,139.51,5.27058486]
[1764293011326,10.3457668,139.56,139.53,0.66]
[1764293011832,7.1657668,139.56,139.53,0.66]
[1764293012036,3.18,139.55,139.53,0.66]
[1764293013441,10.34602003,139.55,139.53,0.66]
[1764293013635,8.80994492,139.54,139.52,0.66]
[1764293013836,8.80994492,139.54,139.51,0.66]
[1764293014041,14.08052978,139.54,139.51,0.66]
[1764293014911,7.1669175,139.53,139.51,0.66]
[1764293015112,3.18,139.52,139.51,0.66]
[1764293015522,16.308864,139.51,139.5,42.99563011]
[1764293015731,3.18,139.52,139.51,0.66]
[1764293016231,19.488864,139.52,139.51,0.66]
[1764293016439,2.46,139.52,139.51,5.93058486]
[1764293016814,8.80994492,139.56,139.51,5.93058486]
[1764293017019,3.18,139.55,139.52,0.66]
[1764293017430,10.34592879,139.55,139.52,0.66]
[1764293017837,16.308864,139.53,139.52,0.66]
[1764293018846,16.308864,139.53,139.5,43.65563011]
[1764293019153,3.18,139.52,139.51,0.66]
[1764293019521,24.42796097,139.52,139.5,42.99563011]
[1764293019725,19.15737611,139.52,139.5,43.65563011]
[1764293020726,10.34794495,139.51,139.5,43.65563011]
[1764293021226,7.16794495,139.51,139.5,43.65563011]
[1764293021425,41.44733873,139.51,139.5,42.99563011]
[1764293021624,40.73733873,139.51,139.5,42.99563011]
[1764293024726,16.308864,139.51,139.5,42.99563011]
[1764293024932,26.65680895,139.51,139.5,43.65563011]
[1764293026231,19.488864,139.51,139.5,43.65563011]
[1764293028253,3.18,139.51,139.5,43.65563011]
[1764293028753,7.16537689,139.56,139.5,56.09452003]
[1764293028961,21.24553561,139.57,139.52,5.27058486]
[1764293029250,21.24553561,139.57,139.51,0.66]
[1764293029251,5.27058486,139.54,139.51,0.66]
[1764293029449,3.18,139.53,139.51,0.66]
[1764293031448,10.34709591,139.53,139.51,0.66]
[1764293033351,3.18,139.53,139.51,0.66]
[1764293038052,3.18,139.53,139.51,2.87209692]
[1764293038360,3.18,139.53,139.52,0.66]
[1764293039240,25.11880892,139.56,139.52,2.87209692]
[1764293039443,3.18,139.55,139.53,2.21209692]
[1764293039657,3.18,139.55,139.53,0.66]
[1764293039846,10.34590383,139.55,139.53,0.66]
[1764293040546,10.34590383,139.55,139.52,0.66]
[1764293040741,12.55800075,139.55,139.5,43.65563011]
[1764293040963,8.80994492,139.53,139.5,43.65563011]
[1764293041264,3.18,139.52,139.5,43.65563011]
[1764293041460,3.18,139.52,139.5,45.86772703]
[1764293041638,10.34752857,139.52,139.5,43.65563011]
[1764293042243,10.34752857,139.52,139.5,42.99563011]
[1764293042551,10.34752857,139.52,139.5,43.65563011]
[1764293043665,3.18,139.52,139.51,0.66]
[1764293043850,16.308864,139.54,139.51,2.87209692]
[1764293044055,19.488864,139.54,139.53,2.21209692]
[1764293044451,3.74550349,139.6,139.53,2.87209692]
[1764293044754,7.16327455,139.61,139.57,2.21209692]
[1764293044949,16.308864,139.58,139.57,2.21209692]
[1764293045163,3.18,139.6,139.57,2.21209692]
[1764293045467,8.80994492,139.63,139.59,2.21209692]
[1764293045666,11.61522234,139.65,139.61,2.21209692]
[1764293045845,7.16080746,139.65,139.62,2.21209692]
[1764293046170,3.18,139.64,139.62,2.21209692]
[1764293046372,3.18,139.64,139.63,0.66]
[1764293047557,8.80994492,139.63,139.58,0.66]
[1764293047756,16.308864,139.6,139.58,0.66]
[1764293047954,3.18,139.59,139.58,0.66]
[1764293048265,3.18,139.59,139.58,5.918118]
[1764293048943,12.41954382,139.64,139.58,5.918118]
[1764293049143,3.18,139.63,139.59,13.08170255]
[1764293049549,16.308864,139.6,139.5,42.99563011]
[1764293049752,3.18,139.59,139.55,5.918118]
[1764293050173,3.18,139.59,139.56,0.66]
[1764293051870,10.34393659,139.59,139.56,0.66]
[1764293053772,3.18,139.58,139.56,0.66]
[1764293054179,3.18,139.58,139.56,5.918118]
[1764293055264,3.18,139.58,139.57,0.66]
[1764293055871,7.16250161,139.62,139.57,5.918118]
[1764293056173,3.18,139.61,139.58,5.918118]
[1764293056564,3.18,139.61,139.59,0.66]
[1764293057384,3.18,139.6,139.59,0.66]
[1764293057770,3.18,139.6,139.59,5.918118]
[1764293061067,3.18,139.6,139.59,0.66]
[1764293062473,3.18,139.6,139.59,5.918118]
[1764293063681,3.18,139.6,139.59,0.66]
[1764293064180,10.34341155,139.6,139.52,5.258118]
[1764293064357,10.34341155,139.6,139.53,5.918118]
[1764293064358,8.80994492,139.58,139.53,5.918118]
[1764293064560,19.488864,139.57,139.53,5.258118]
[1764293064785,20.198864,139.57,139.53,5.258118]
[1764293065091,20.198864,139.57,139.5,42.99563011]
[1764293065092,16.308864,139.53,139.5,42.99563011]
[1764293065277,3.18,139.52,139.5,42.99563011]
[1764293065658,7.16794495,139.51,139.5,42.99563011]
[1764293066388,11.05761147,139.52,139.5,42.99563011]
[1764293066756,16.308864,139.51,139.5,42.99563011]
[1764293069472,32.99675387,139.51,139.5,42.99563011]
[1764293069672,3.18,139.52,139.5,42.99563011]
[1764293069981,3.18,139.52,139.51,9.17250612]
[1764293070487,3.18,139.52,139.51,9.83250612]
[1764293070867,3.18,139.52,139.51,17.00045107]
[1764293073162,32.28348837,139.58,139.51,34.92031344]
[1764293073367,32.28348837,139.58,139.55,9.17250612]
[1764293073368,16.308864,139.56,139.55,9.17250612]
[1764293073569,19.488864,139.57,139.55,9.17250612]
[1764293073882,3.18,139.56,139.55,9.83250612]
[1764293074783,3.18,139.56,139.55,16.99839648]
[1764293074964,3.18,139.57,139.55,16.99839648]
[1764293075289,3.18,139.57,139.56,9.83250612]
[1764293076083,3.18,139.57,139.56,16.99788301]
[1764293079392,3.18,139.57,139.56,9.83250612]
[1764293080267,3.18,139.57,139.56,16.99788301]
[1764293081883,113.43376842,139.67,139.56,16.99788301]
[1764293081884,7.81127184,139.64,139.56,16.99788301]
[1764293082085,7.81127184,139.64,139.6,9.17250612]
[1764293082086,3.18,139.63,139.6,9.17250612]
[1764293082475,3.18,139.63,139.6,9.89250612]
[1764293084601,12.55420386,139.65,139.62,9.17250612]
[1764293084910,0.2,139.66,139.63,9.17250612]
[1764293085076,3.18,139.64,139.61,0.72]
[1764293085607,16.308864,139.65,139.61,0.72]
[1764293085809,19.488864,139.65,139.62,7.16229766]
[1764293086007,3.18,139.65,139.62,25.06804182]
[1764293086210,3.18,139.65,139.64,9.17250612]
[1764293086379,0.2,139.66,139.64,9.17250612]
[1764293086711,3.38,139.66,139.65,9.89250612]
[1764293086904,0.2,139.66,139.65,9.89250612]
[1764293087434,0.2,139.67,139.65,9.89250612]
[1764293087601,0.2,139.67,139.66,9.89250612]
[1764293087780,0.2,139.67,139.66,17.05275243]
[1764293089926,0.2,139.67,139.66,16.33275243]
[1764293090078,0.2,139.67,139.66,9.89250612]
[1764293090278,0.2,139.67,139.66,17.05275243]
[1764293099033,0.2,139.69,139.66,34.95336821]
[1764293099231,0.2,139.69,139.68,9.17250612]
[1764293099622,0.2,139.69,139.68,9.89250612]
[1764293100232,0.2,139.69,139.68,17.05172719]
[1764293101436,0.2,139.69,139.68,9.17250612]
[1764293101737,0.85,139.69,139.63,0.72]
[1764293102037,11.18874714,139.69,139.65,9.17250612]
[1764293102210,0.65,139.68,139.67,9.17250612]
[1764293102410,3.38,139.69,139.67,9.17250612]
[1764293102611,0.65,139.68,139.65,9.17250612]
[1764293102826,3.83,139.68,139.64,9.17250612]
[1764293103012,16.308864,139.66,139.63,9.17250612]
[1764293103213,3.18,139.68,139.65,9.17250612]
[1764293103432,3.18,139.68,139.66,9.17250612]
[1764293103636,3.83,139.68,139.66,9.17250612]
[1764293104021,3.83,139.68,139.65,9.17250612]
[1764293104234,16.308864,139.65,139.63,9.17250612]
[1764293104532,16.308864,139.65,139.63,16.33414914]
[1764293104722,0.65,139.66,139.63,16.33414914]
[1764293104923,26.64851987,139.68,139.64,9.17250612]
[1764293104924,0.65,139.67,139.64,9.17250612]
[1764293105526,0.65,139.67,139.65,9.17250612]
[1764293105527,3.18,139.67,139.65,9.17250612]
[1764293106317,8.00876974,139.69,139.66,9.89250612]
[1764293106318,0.2,139.69,139.66,9.89250612]
[1764293106522,3.18,139.68,139.66,0.72]
[1764293106724,0.2,139.69,139.67,0.72]
[1764293107518,0.2,139.69,139.68,9.17250612]
[1764293108047,0.65,139.68,139.66,9.17250612]
[1764293108346,0.65,139.68,139.65,9.17250612]
[1764293108725,0.65,139.68,139.64,9.17250612]
[1764293109125,0.65,139.68,139.64,16.33373234]
[1764293109734,7.80935236,139.68,139.64,16.33373234]
[1764293110256,0.65,139.67,139.64,16.33373234]
[1764293110425,3.18,139.66,139.63,9.17250612]
[1764293110847,3.85,139.66,139.63,9.17250612]
[1764293111328,3.18,139.66,139.63,9.17250612]
[1764293111831,3.18,139.66,139.63,16.33406996]
[1764293112019,16.308864,139.64,139.59,16.33634307]
[1764293112347,25.48137012,139.64,139.59,16.33634307]
[1764293112552,0.71,139.63,139.59,16.33634307]
[1764293112846,3.18,139.62,139.59,7.16383695]
[1764293113146,3.18,139.62,139.56,9.17250612]
[1764293113147,12.35250612,139.62,139.56,9.17250612]
[1764293113334,0.71,139.61,139.57,9.17250612]
[1764293114447,0.71,139.61,139.57,16.33696685]
[1764293114648,10.34257306,139.62,139.58,9.17250612]
[1764293114649,3.18,139.62,139.58,9.17250612]
[1764293114949,3.18,139.61,139.59,9.17250612]
[1764293116145,3.18,139.61,139.59,16.33608999]
[1764293116445,3.89,139.61,139.59,16.33608999]
[1764293119043,3.18,139.61,139.59,16.33608999]
[1764293119436,3.18,139.61,139.6,9.17250612]
[1764293119937,3.18,139.61,139.6,9.83250612]
[1764293120452,3.18,139.61,139.6,9.17250612]
[1764293120826,3.18,139.61,139.59,7.16358387]
[1764293121032,3.18,139.61,139.6,9.17250612]
[1764293122433,3.18,139.61,139.6,16.3358299]
[1764293123636,3.18,139.61,139.59,7.16383695]
[1764293123862,3.18,139.61,139.6,9.17250612]
[1764293124859,3.18,139.61,139.6,16.3358299]
[1764293130575,3.18,139.61,139.6,12.42275852]
[1764293130866,3.18,139.61,139.53,35.83427718]
[1764293131044,11.05286767,139.61,139.58,5.25943474]
[1764293131243,3.18,139.61,139.59,5.25943474]
[1764293132262,3.18,139.61,139.59,12.42318426]
[1764293132446,3.18,139.6,139.59,12.42318426]
[1764293132646,3.18,139.6,139.59,10.03287482]
[1764293135965,16.308864,139.63,139.59,10.03287482]
[1764293136268,3.18,139.63,139.62,2.2091253]
[1764293136468,0.71,139.66,139.62,2.2091253]
[1764293136766,0.71,139.66,139.65,2.2091253]
[1764293136968,20.198864,139.66,139.65,2.2091253]
[1764293137172,19.488864,139.66,139.65,2.2091253]
[1764293137555,20.198864,139.66,139.65,2.2091253]
[1764293138478,19.488864,139.66,139.65,2.8691253]
[1764293138687,19.488864,139.66,139.65,2.2091253]
[1764293139649,3.18,139.66,139.65,2.2091253]
[1764293140161,0.2,139.69,139.65,10.02988434]
[1764293140162,0.91,139.69,139.65,10.02988434]
[1764293140353,0.2,139.69,139.68,2.2091253]
[1764293140758,3.38,139.69,139.68,2.8991253]
[1764293140972,0.2,139.69,139.68,2.8991253]
[1764293141679,3.38,139.71,139.68,2.8991253]
[1764293141978,0.2,139.71,139.7,2.2091253]
[1764293142267,0.2,139.71,139.7,9.36732143]
[1764293142477,0.2,139.71,139.7,10.05732143]
[1764293143864,0.2,139.71,139.7,7.84819613]
[1764293144069,0.2,139.71,139.7,9.36732143]
[1764293144471,0.2,139.71,139.7,10.05732143]
[1764293145178,0.2,139.71,139.7,0.69]
[1764293145481,0.2,139.71,139.7,2.2091253]
[1764293146372,0.2,139.71,139.7,9.36732143]
[1764293146678,0.2,139.71,139.7,13.09904789]
[1764293149879,0.2,139.71,139.7,12.40904789]
[1764293150471,0.2,139.71,139.7,13.09904789]
[1764293150674,0.2,139.71,139.7,12.40904789]
[1764293151486,0.2,139.71,139.68,7.15908629]
[1764293151652,0.2,139.71,139.69,0.69]
[1764293151852,0.2,139.71,139.7,5.25085176]
[1764293152269,0.2,139.71,139.7,5.94085176]
[1764293152468,0.2,139.71,139.7,13.09904789]
[1764293153273,0.2,139.71,139.7,12.40904789]
[1764293155786,0.2,139.71,139.7,13.09904789]
[1764293160785,0.2,139.71,139.7,7.15819613]
[1764293160994,0.9,139.71,139.67,7.15973365]
[1764293161288,0.9,139.71,139.68,5.25085176]
[1764293161464,0.2,139.71,139.7,5.25085176]
[1764293161664,0.9,139.71,139.69,12.40956032]
[1764293162389,0.7,139.7,139.69,7.15870856]
[1764293162581,17.008864,139.7,139.68,12.40986927]
[1764293162784,20.188864,139.7,139.68,12.40986927]
[1764293163171,0.7,139.69,139.68,12.40986927]
[1764293163371,20.188864,139.7,139.68,7.15901751]
[1764293163572,20.188864,139.7,139.68,12.40986927]
[1764293164073,3.88,139.7,139.68,12.40986927]
[1764293166388,17.008864,139.69,139.65,17.90177784]
[1764293166564,17.008864,139.69,139.66,2.20699684]
[1764293166767,0.7,139.68,139.66,9.36707486]
[1764293167176,0.7,139.68,139.66,7.16007802]
[1764293167982,17.008864,139.68,139.66,9.36707486]
[1764293168188,16.308864,139.68,139.66,9.36707486]
[1764293169265,17.008864,139.68,139.66,9.36707486]
[1764293169485,16.308864,139.68,139.66,9.36707486]
[1764293169684,26.64715535,139.7,139.66,9.36707486]
[1764293169888,0.7,139.69,139.66,9.36707486]
[1764293170689,19.488864,139.7,139.66,10.05707486]
[1764293170990,19.488864,139.7,139.68,2.20699684]
[1764293171197,3.18,139.7,139.68,2.20699684]
[1764293172800,3.18,139.7,139.67,10.05636754]
[1764293175104,19.488864,139.7,139.67,10.05636754]
[1764293175707,19.488864,139.7,139.67,7.8493707]
[1764293175909,19.488864,139.7,139.68,2.20699684]
[1764293176082,19.488864,139.7,139.67,7.8493707]
[1764293176083,0.69,139.69,139.67,9.36636754]
[1764293176279,20.178864,139.7,139.67,9.36636754]
[1764293176988,19.488864,139.7,139.68,2.86699684]
[1764293177516,19.488864,139.7,139.68,2.20699684]
[1764293178284,0.89,139.71,139.69,2.86699684]
[1764293178285,0.2,139.71,139.69,2.86699684]
[1764293178486,3.18,139.7,139.69,0.66]
[1764293178687,3.18,139.7,139.67,25.05870484]
[1764293178983,3.18,139.7,139.67,17.89933414]
[1764293179182,3.18,139.7,139.68,0.66]
[1764293179411,0.2,139.71,139.68,0.66]
[1764293179590,3.38,139.71,139.68,0.66]
[1764293179788,3.38,139.71,139.7,2.20699684]
[1764293180591,16.308864,139.7,139.68,2.20699684]
[1764293180798,16.308864,139.7,139.67,2.86699684]
[1764293181107,16.308864,139.7,139.69,7.15870856]
[1764293181614,16.308864,139.7,139.69,9.3657054]
[1764293183009,3.38,139.71,139.69,9.3657054]
[1764293183218,3.38,139.71,139.7,2.86699684]
[1764293183706,0.2,139.71,139.7,2.86699684]
[1764293185091,0.2,139.71,139.7,10.02519297]
[1764293190612,0.2,139.71,139.7,11.26355035]
[1764293193733,0.89,139.71,139.66,18.56005676]
[1764293194022,11.98994492,139.7,139.66,3.44535422]
[1764293194321,12.67994492,139.7,139.67,3.44535422]
[1764293194523,0.69,139.69,139.67,3.44535422]
[1764293196024,12.67994492,139.7,139.67,3.44535422]
[1764293196519,0.69,139.69,139.67,3.44535422]
[1764293201716,0.69,139.69,139.64,17.90250741]
[1764293201717,16.308864,139.67,139.62,0.69]
[1764293201915,3.18,139.66,139.62,3.44535422]
[1764293202120,0.68,139.65,139.62,3.44535422]
[1764293203625,0.68,139.65,139.63,7.16178471]
[1764293204211,9.48994492,139.68,139.64,0.69]
[1764293204416,3.18,139.67,139.65,3.44535422]
[1764293205823,3.18,139.67,139.65,10.60581601]
[1764293206033,16.988864,139.68,139.65,10.60581601]
[1764293206331,3.18,139.66,139.65,11.29581601]
[1764293208800,3.18,139.67,139.65,11.29581601]
[1764293209007,3.18,139.67,139.66,3.44535422]
[1764293210640,3.18,139.67,139.66,10.60560053]
[1764293212241,3.18,139.67,139.66,11.29560053]
[1764293214721,3.18,139.67,139.66,7.85024631]
[1764293214942,3.18,139.67,139.66,11.29560053]
[1764293216345,3.18,139.67,139.64,17.90258419]
[1764293216346,20.168864,139.67,139.64,3.44535422]
[1764293216520,20.168864,139.67,139.64,4.13535422]
[1764293216843,3.18,139.67,139.65,4.13535422]
[1764293218539,3.18,139.67,139.66,7.16024631]
[1764293220648,3.18,139.67,139.66,7.85024631]
[1764293221140,3.18,139.67,139.66,7.16024631]
[1764293221348,3.18,139.67,139.66,11.29560053]
[1764293221922,0.2,139.71,139.66,11.29560053]
[1764293221923,3.38,139.71,139.66,11.29560053]
[1764293222126,3.38,139.71,139.69,3.44535422]
[1764293222724,0.68,139.7,139.67,3.44535422]
[1764293223932,0.68,139.7,139.68,7.15922107]
[1764293224134,19.688864,139.71,139.68,10.60457529]
[1764293224465,0.68,139.7,139.68,10.60457529]
[1764293225739,3.18,139.69,139.68,10.60457529]
[1764293225946,3.18,139.69,139.68,11.29457529]
[1764293226144,3.18,139.69,139.68,10.60457529]
[1764293226849,3.18,139.69,139.68,11.29457529]
[1764293228567,0.2,139.71,139.68,29.19262798]
[1764293228734,0.2,139.71,139.7,3.44535422]
[1764293229245,0.2,139.71,139.7,11.29355035]
[1764293231332,0.2,139.71,139.7,10.60355035]
[1764293231830,0.2,139.71,139.7,11.27355035]
[1764293233834,0.2,139.71,139.7,10.60355035]
[1764293236457,0.2,139.71,139.7,11.29355035]
[1764293238546,0.2,139.71,139.7,10.60355035]
[1764293238857,0.2,139.71,139.7,7.15819613]
[1764293239769,0.2,139.71,139.66,17.89997788]
[1764293239958,0.2,139.71,139.54,0.1]
[1764293239959,16.308864,139.68,139.58,3.44535422]
[1764293240139,3.18,139.67,139.63,3.44535422]
[1764293240341,3.86,139.67,139.63,3.44535422]
[1764293240539,0.68,139.66,139.63,3.44535422]
[1764293240940,0.68,139.66,139.63,4.13535422]
[1764293241141,0.68,139.66,139.61,0.69]
[1764293241342,0.68,139.66,139.62,3.44535422]
[1764293241844,0.68,139.66,139.63,7.16178471]
[1764293242040,16.308864,139.64,139.6,3.44535422]
[1764293242244,16.308864,139.64,139.58,0.69]
[1764293242245,20.168864,139.63,139.58,3.44535422]
[1764293242745,0.68,139.62,139.59,3.44535422]
[1764293242947,16.308864,139.62,139.59,4.13535422]
[1764293243365,16.308864,139.62,139.57,25.07702227]
[1764293243669,16.308864,139.62,139.59,4.13535422]
[1764293244146,16.308864,139.62,139.6,7.16332378]
[1764293244347,16.308864,139.62,139.59,11.29905785]
[1764293245044,16.308864,139.62,139.55,0.1]
[1764293245045,16.308864,139.6,139.58,10.60962163]
[1764293245256,19.488864,139.6,139.56,3.44535422]
[1764293245550,19.488864,139.6,139.56,10.61040163]
[1764293245551,0.68,139.59,139.56,10.61040163]
[1764293246363,0.68,139.59,139.56,7.16504741]
[1764293246546,0.68,139.59,139.56,11.30040163]
[1764293247248,0.68,139.59,139.56,10.61040163]
[1764293248070,16.308864,139.59,139.57,4.13535422]
[1764293248365,3.18,139.58,139.57,4.13535422]
[1764293248671,3.18,139.58,139.57,11.30021772]
[1764293249760,19.488864,139.6,139.57,29.21237649]
[1764293249958,19.488864,139.6,139.59,3.44535422]
[1764293250353,3.18,139.6,139.58,4.13535422]
[1764293250557,3.18,139.6,139.56,9.37504466]
[1764293250869,0.68,139.59,139.56,7.16537689]
[1764293251068,19.19853177,139.59,139.55,0.1]
[1764293251460,16.308864,139.57,139.55,0.1]
[1764293251656,3.18,139.56,139.55,0.1]
[1764293252375,3.18,139.56,139.55,7.26589036]
[1764293252678,3.18,139.56,139.55,0.1]
[1764293253376,3.18,139.56,139.55,2.99966777]
[1764293254373,3.18,139.56,139.55,10.16555813]
[1764293254766,0.68,139.61,139.55,10.16555813]
[1764293254968,3.18,139.6,139.58,2.20966777]
[1764293255268,3.18,139.6,139.57,2.20966777]
[1764293255479,19.488864,139.6,139.57,2.89966777]
[1764293255776,0.68,139.59,139.55,7.26589036]
[1764293255956,0.68,139.59,139.55,9.47555813]
[1764293256462,0.68,139.59,139.55,10.16555813]
[1764293256664,16.988864,139.59,139.55,10.16555813]
[1764293257370,16.308864,139.59,139.55,10.16555813]
[1764293257576,0.68,139.58,139.55,9.47555813]
[1764293257874,3.18,139.57,139.56,2.89966777]
[1764293258565,3.18,139.57,139.56,10.06504466]
[1764293259672,3.18,139.59,139.56,27.9784869]
[1764293259969,3.18,139.59,139.58,2.20966777]
[1764293260180,19.488864,139.61,139.58,2.20966777]
[1764293260382,19.488864,139.61,139.59,2.20966777]
[1764293260684,19.488864,139.61,139.58,2.88966777]
[1764293260882,19.488864,139.61,139.59,7.16383695]
[1764293261181,0.67,139.6,139.58,7.16420891]
[1764293261856,19.488864,139.61,139.58,7.16420891]
[1764293262157,20.158864,139.61,139.58,7.16420891]
[1764293263283,16.978864,139.61,139.58,9.37387668]
[1764293263576,3.18,139.6,139.58,9.37387668]
[1764293263883,3.18,139.6,139.59,0.68]
[1764293264381,3.18,139.6,139.58,10.05387668]
[1764293264582,3.18,139.6,139.59,2.20966777]
[1764293264787,3.18,139.6,139.59,9.37350472]
[1764293265864,19.488864,139.62,139.59,27.96309709]
[1764293266082,19.488864,139.62,139.6,2.20966777]
[1764293266461,19.488864,139.62,139.59,27.96309709]
[1764293266670,20.158864,139.62,139.59,27.96309709]
[1764293266991,19.488864,139.62,139.59,27.96309709]
[1764293269082,1.99999999,139.7,139.61,2.20966777]
[1764293269083,0.67,139.67,139.61,2.20966777]
[1764293269388,19.488864,139.65,139.64,2.20966777]
[1764293269796,19.488864,139.65,139.64,2.88966777]
[1764293270093,0.2,139.71,139.64,5.09933554]
[1764293270291,3.18,139.7,139.69,2.20966777]
[1764293270464,3.18,139.7,139.66,25.06086209]
[1764293270663,16.508864,139.71,139.66,25.74086209]
[1764293270881,19.688864,139.71,139.67,0.68]
[1764293271465,0.67,139.7,139.66,9.36991408]
[1764293272285,0.67,139.7,139.66,2.20966777]
[1764293272493,7.82870755,139.7,139.65,9.37030082]
[1764293272692,7.82870755,139.7,139.66,2.20966777]
[1764293272872,0.67,139.69,139.66,2.20966777]
[1764293273083,19.488864,139.68,139.67,2.20966777]
[1764293273279,19.488864,139.68,139.64,0.68]
[1764293273482,19.488864,139.68,139.65,2.20966777]
[1764293273701,16.308864,139.68,139.65,2.20966777]
[1764293273875,3.18,139.67,139.65,2.88966777]
[1764293274273,3.18,139.67,139.66,2.20966777]
[1764293274886,3.18,139.67,139.65,9.37018007]
[1764293275488,3.18,139.67,139.65,10.05018007]
[1764293276586,3.18,139.67,139.64,7.16126554]
[1764293276880,16.308864,139.65,139.63,9.37142888]
[1764293277074,3.18,139.64,139.63,9.37142888]
[1764293277413,16.978864,139.67,139.64,0.68]
[1764293277707,3.18,139.66,139.65,2.20966777]
[1764293279595,3.18,139.66,139.65,10.05042681]
[1764293280288,19.488864,139.67,139.65,10.05042681]
[1764293280505,19.488864,139.67,139.66,2.20966777]
[1764293281706,19.488864,139.67,139.65,10.05042681]
[1764293282500,8.80994492,139.7,139.66,2.88966777]
[1764293282501,16.308864,139.7,139.66,2.88966777]
[1764293282701,19.488864,139.7,139.68,2.20966777]
[1764293282879,3.18,139.7,139.69,2.20966777]
[1764293283393,0.2,139.71,139.69,2.88966777]
[1764293283693,0.2,139.71,139.7,10.0478639]
[1764293284585,0.2,139.71,139.68,17.8968728]
[1764293284586,0.87,139.71,139.69,9.36824727]
[1764293284774,0.2,139.71,139.69,9.36824727]
[1764293285684,17.178864,139.71,139.69,9.36824727]
[1764293286599,0.67,139.7,139.67,9.36889213]
[1764293286899,3.18,139.69,139.67,2.20966777]
[1764293287102,3.18,139.69,139.66,9.36975829]
[1764293287286,0.67,139.68,139.66,9.36975829]
[1764293287487,0.67,139.68,139.66,2.20966777]
[1764293287996,0.67,139.68,139.65,9.37024086]
[1764293288986,26.64773465,139.69,139.65,10.05024086]
[1764293289188,16.308864,139.7,139.67,2.20966777]
[1764293289498,0.87,139.71,139.68,2.20966777]
[1764293289701,3.38,139.71,139.7,2.20966777]
[1764293291111,3.38,139.71,139.7,9.3678639]
[1764293291795,3.38,139.71,139.7,7.15819613]
[1764293291996,3.38,139.71,139.7,9.3678639]
[1764293292786,0.2,139.71,139.7,10.0778639]
[1764293300700,0.2,139.71,139.7,2.20966777]
[1764293300906,0.88,139.71,139.69,9.36794492]
[1764293301094,3.18,139.7,139.69,9.36794492]
[1764293303297,3.18,139.7,139.69,10.07794492]
[1764293306117,0.2,139.71,139.69,10.07794492]
[1764293306333,0.2,139.71,139.7,2.91966777]
[1764293308417,0.2,139.71,139.7,10.0778639]
[1764293312636,0.2,139.71,139.7,11.31311821]
[1764293313714,0.2,139.71,139.7,10.60311821]
[1764293315026,0.2,139.71,139.7,11.31311821]
[1764293322129,0.86,139.71,139.67,0.72]
[1764293322331,0.86,139.71,139.69,3.44492208]
[1764293322518,4.04,139.71,139.69,3.44492208]
[1764293323736,0.2,139.71,139.7,4.16492208]
[1764293324625,0.2,139.71,139.7,11.32311821]
[1764293327433,0.2,139.71,139.7,10.60311821]
[1764293328528,0.2,139.71,139.7,11.32311821]
[1764293330833,0.2,139.71,139.7,7.15819613]
[1764293331010,0.2,139.71,139.7,10.60311821]